{"text_format":"1","workbook":"xlsx","n_sheets":3,"sheets":["רשימת מלאי","רשימת בחירת מלאי","חיפוש תא"],"not_rendered":{"charts":0,"images":0,"macros":1,"external_links":0,"defined_names":8,"comments":0,"pivot_tables":0},"unopened":[],"bounds":{"document_bytes":16777216,"sheet_cells":100000,"rows_first":2000,"rows_last":500,"rows_between":2000,"halvings":0,"cell_chars":16384,"cell_head_chars":4096},"cells_cut":0,"cells_raw":0,"read":"whole","date_system":"1900"}

{"sheet":"רשימת מלאי","index":0,"n_rows":15,"n_cols":11,"rows_kept":15,"cut":false,"hidden":false,"merged":[]}
[null,"רשימת מלאי"]
[null,"ערך מלאי כולל:","פריטים במלאי:","ספירת תאים:","רשימת בחירת מלאי","חיפוש תא"]
[null,{"$f":"SUM(רשימת_מלאי[ערך מלאי])","v":4649},{"$f":"COUNTA(רשימת_מלאי[תיאור])","v":11},{"$f":"SUMPRODUCT((1/COUNTIF(רשימת_מלאי[מספר תא],רשימת_מלאי[מספר תא]&\"\")))","v":6}]
[null,"מק\"ט","תיאור","מספר תא","מיקום","יחידה","כמות","כמות להזמנה חוזרת","עלות","ערך מלאי","הזמנה חוזרת"]
[null,"SP7875","פריט 1","T345",{"$f":"IFERROR(VLOOKUP(רשימת_מלאי[[#This Row],[מספר תא]],חיפוש_תא[],3,FALSE),\"\")","v":"שורה 2, תא 1"},"כל פריט",20,10,30,{"$f":"רשימת_מלאי[[#This Row],[כמות]]*רשימת_מלאי[[#This Row],[עלות]]","v":600},{"$f":"IFERROR(IF(רשימת_מלאי[[#This Row],[כמות]]<=רשימת_מלאי[[#This Row],[כמות להזמנה חוזרת]],1,0),0)","v":0}]
[null,"TR87680","פריט 2","T345",{"$f":"IFERROR(VLOOKUP(רשימת_מלאי[[#This Row],[מספר תא]],חיפוש_תא[],3,FALSE),\"\")","v":"שורה 2, תא 1"},"כל פריט",30,15,40,{"$f":"רשימת_מלאי[[#This Row],[כמות]]*רשימת_מלאי[[#This Row],[עלות]]","v":1200},{"$f":"IFERROR(IF(רשימת_מלאי[[#This Row],[כמות]]<=רשימת_מלאי[[#This Row],[כמות להזמנה חוזרת]],1,0),0)","v":0}]
[null,"MK676554","פריט 3","T5789",{"$f":"IFERROR(VLOOKUP(רשימת_מלאי[[#This Row],[מספר תא]],חיפוש_תא[],3,FALSE),\"\")","v":"שורה 1, תא 1"},"כל פריט",10,5,5,{"$f":"רשימת_מלאי[[#This Row],[כמות]]*רשימת_מלאי[[#This Row],[עלות]]","v":50},{"$f":"IFERROR(IF(רשימת_מלאי[[#This Row],[כמות]]<=רשימת_מלאי[[#This Row],[כמות להזמנה חוזרת]],1,0),0)","v":0}]
[null,"YE98767","פריט 4","T9876",{"$f":"IFERROR(VLOOKUP(רשימת_מלאי[[#This Row],[מספר תא]],חיפוש_תא[],3,FALSE),\"\")","v":"שורה 3, תא 2"},"קופסה (10 יח')",40,10,15,{"$f":"רשימת_מלאי[[#This Row],[כמות]]*רשימת_מלאי[[#This Row],[עלות]]","v":600},{"$f":"IFERROR(IF(רשימת_מלאי[[#This Row],[כמות]]<=רשימת_מלאי[[#This Row],[כמות להזמנה חוזרת]],1,0),0)","v":0}]
[null,"XR23423","פריט 5","T098",{"$f":"IFERROR(VLOOKUP(רשימת_מלאי[[#This Row],[מספר תא]],חיפוש_תא[],3,FALSE),\"\")","v":"שורה 3, תא 1"},"כל פריט",12,10,26,{"$f":"רשימת_מלאי[[#This Row],[כמות]]*רשימת_מלאי[[#This Row],[עלות]]","v":312},{"$f":"IFERROR(IF(רשימת_מלאי[[#This Row],[כמות]]<=רשימת_מלאי[[#This Row],[כמות להזמנה חוזרת]],1,0),0)","v":0}]
[null,"PW98762","פריט 6","T345",{"$f":"IFERROR(VLOOKUP(רשימת_מלאי[[#This Row],[מספר תא]],חיפוש_תא[],3,FALSE),\"\")","v":"שורה 2, תא 1"},"כל פריט",7,10,50,{"$f":"רשימת_מלאי[[#This Row],[כמות]]*רשימת_מלאי[[#This Row],[עלות]]","v":350},{"$f":"IFERROR(IF(רשימת_מלאי[[#This Row],[כמות]]<=רשימת_מלאי[[#This Row],[כמות להזמנה חוזרת]],1,0),0)","v":1}]
[null,"BM87684","פריט 7","T349",{"$f":"IFERROR(VLOOKUP(רשימת_מלאי[[#This Row],[מספר תא]],חיפוש_תא[],3,FALSE),\"\")","v":"שורה 1, תא 2"},"כל פריט",10,5,10,{"$f":"רשימת_מלאי[[#This Row],[כמות]]*רשימת_מלאי[[#This Row],[עלות]]","v":100},{"$f":"IFERROR(IF(רשימת_מלאי[[#This Row],[כמות]]<=רשימת_מלאי[[#This Row],[כמות להזמנה חוזרת]],1,0),0)","v":0}]
[null,"BH67655","פריט 8","T5789",{"$f":"IFERROR(VLOOKUP(רשימת_מלאי[[#This Row],[מספר תא]],חיפוש_תא[],3,FALSE),\"\")","v":"שורה 1, תא 1"},"כל פריט",19,10,3,{"$f":"רשימת_מלאי[[#This Row],[כמות]]*רשימת_מלאי[[#This Row],[עלות]]","v":57},{"$f":"IFERROR(IF(רשימת_מלאי[[#This Row],[כמות]]<=רשימת_מלאי[[#This Row],[כמות להזמנה חוזרת]],1,0),0)","v":0}]
[null,"WT98768","פריט 9","T9875",{"$f":"IFERROR(VLOOKUP(רשימת_מלאי[[#This Row],[מספר תא]],חיפוש_תא[],3,FALSE),\"\")","v":"שורה 2, תא 2"},"חבילה (5 יח')",20,30,14,{"$f":"רשימת_מלאי[[#This Row],[כמות]]*רשימת_מלאי[[#This Row],[עלות]]","v":280},{"$f":"IFERROR(IF(רשימת_מלאי[[#This Row],[כמות]]<=רשימת_מלאי[[#This Row],[כמות להזמנה חוזרת]],1,0),0)","v":1}]
[null,"TS3456","פריט 10","T349",{"$f":"IFERROR(VLOOKUP(רשימת_מלאי[[#This Row],[מספר תא]],חיפוש_תא[],3,FALSE),\"\")","v":"שורה 1, תא 2"},"כל פריט",15,8,60,{"$f":"רשימת_מלאי[[#This Row],[כמות]]*רשימת_מלאי[[#This Row],[עלות]]","v":900},{"$f":"IFERROR(IF(רשימת_מלאי[[#This Row],[כמות]]<=רשימת_מלאי[[#This Row],[כמות להזמנה חוזרת]],1,0),0)","v":0}]
[null,"WDG123","פריט 11","T349",{"$f":"IFERROR(VLOOKUP(רשימת_מלאי[[#This Row],[מספר תא]],חיפוש_תא[],3,FALSE),\"\")","v":"שורה 1, תא 2"},"כל פריט",25,15,8,{"$f":"רשימת_מלאי[[#This Row],[כמות]]*רשימת_מלאי[[#This Row],[עלות]]","v":200},{"$f":"IFERROR(IF(רשימת_מלאי[[#This Row],[כמות]]<=רשימת_מלאי[[#This Row],[כמות להזמנה חוזרת]],1,0),0)","v":0}]

{"sheet":"רשימת בחירת מלאי","index":1,"n_rows":9,"n_cols":9,"rows_kept":9,"cut":false,"hidden":false,"merged":[]}
[null,"רשימת בחירת מלאי"]
[null,null,"רשימת מלאי"]
[]
[null,"מספר הזמנה","מק\"ט","כמות לבחירה","כמות זמינה","תיאור פריט","יחידה","מספר תא","מיקום"]
[null,"TP001-1","SP7875",3,{"$f":"IFERROR(VLOOKUP(רשימת_בחירת_מלאי[[#This Row],[מק\"ט]],רשימת_מלאי[],6,FALSE),\"\")","v":20},{"$f":"IFERROR(VLOOKUP(רשימת_בחירת_מלאי[[#This Row],[מק\"ט]],רשימת_מלאי[],2,FALSE),\"\")","v":"פריט 1"},{"$f":"IFERROR(VLOOKUP(רשימת_בחירת_מלאי[[#This Row],[מק\"ט]],רשימת_מלאי[],5,FALSE),\"\")","v":"כל פריט"},{"$f":"IFERROR(VLOOKUP(רשימת_בחירת_מלאי[[#This Row],[מק\"ט]],רשימת_מלאי[],3,FALSE),\"\")","v":"T345"},{"$f":"IFERROR(VLOOKUP(רשימת_בחירת_מלאי[[#This Row],[מק\"ט]],רשימת_מלאי[],4,FALSE),\"\")","v":"שורה 2, תא 1"}]
[null,"TP001-1","YE98767",1,{"$f":"IFERROR(VLOOKUP(רשימת_בחירת_מלאי[[#This Row],[מק\"ט]],רשימת_מלאי[],6,FALSE),\"\")","v":40},{"$f":"IFERROR(VLOOKUP(רשימת_בחירת_מלאי[[#This Row],[מק\"ט]],רשימת_מלאי[],2,FALSE),\"\")","v":"פריט 4"},{"$f":"IFERROR(VLOOKUP(רשימת_בחירת_מלאי[[#This Row],[מק\"ט]],רשימת_מלאי[],5,FALSE),\"\")","v":"קופסה (10 יח')"},{"$f":"IFERROR(VLOOKUP(רשימת_בחירת_מלאי[[#This Row],[מק\"ט]],רשימת_מלאי[],3,FALSE),\"\")","v":"T9876"},{"$f":"IFERROR(VLOOKUP(רשימת_בחירת_מלאי[[#This Row],[מק\"ט]],רשימת_מלאי[],4,FALSE),\"\")","v":"שורה 3, תא 2"}]
[null,"TP001-1","BM87684",2,{"$f":"IFERROR(VLOOKUP(רשימת_בחירת_מלאי[[#This Row],[מק\"ט]],רשימת_מלאי[],6,FALSE),\"\")","v":10},{"$f":"IFERROR(VLOOKUP(רשימת_בחירת_מלאי[[#This Row],[מק\"ט]],רשימת_מלאי[],2,FALSE),\"\")","v":"פריט 7"},{"$f":"IFERROR(VLOOKUP(רשימת_בחירת_מלאי[[#This Row],[מק\"ט]],רשימת_מלאי[],5,FALSE),\"\")","v":"כל פריט"},{"$f":"IFERROR(VLOOKUP(רשימת_בחירת_מלאי[[#This Row],[מק\"ט]],רשימת_מלאי[],3,FALSE),\"\")","v":"T349"},{"$f":"IFERROR(VLOOKUP(רשימת_בחירת_מלאי[[#This Row],[מק\"ט]],רשימת_מלאי[],4,FALSE),\"\")","v":"שורה 1, תא 2"}]
[null,"TP001-1","TS3456",6,{"$f":"IFERROR(VLOOKUP(רשימת_בחירת_מלאי[[#This Row],[מק\"ט]],רשימת_מלאי[],6,FALSE),\"\")","v":15},{"$f":"IFERROR(VLOOKUP(רשימת_בחירת_מלאי[[#This Row],[מק\"ט]],רשימת_מלאי[],2,FALSE),\"\")","v":"פריט 10"},{"$f":"IFERROR(VLOOKUP(רשימת_בחירת_מלאי[[#This Row],[מק\"ט]],רשימת_מלאי[],5,FALSE),\"\")","v":"כל פריט"},{"$f":"IFERROR(VLOOKUP(רשימת_בחירת_מלאי[[#This Row],[מק\"ט]],רשימת_מלאי[],3,FALSE),\"\")","v":"T349"},{"$f":"IFERROR(VLOOKUP(רשימת_בחירת_מלאי[[#This Row],[מק\"ט]],רשימת_מלאי[],4,FALSE),\"\")","v":"שורה 1, תא 2"}]
[null,"TP001-1","MK676554",3,{"$f":"IFERROR(VLOOKUP(רשימת_בחירת_מלאי[[#This Row],[מק\"ט]],רשימת_מלאי[],6,FALSE),\"\")","v":10},{"$f":"IFERROR(VLOOKUP(רשימת_בחירת_מלאי[[#This Row],[מק\"ט]],רשימת_מלאי[],2,FALSE),\"\")","v":"פריט 3"},{"$f":"IFERROR(VLOOKUP(רשימת_בחירת_מלאי[[#This Row],[מק\"ט]],רשימת_מלאי[],5,FALSE),\"\")","v":"כל פריט"},{"$f":"IFERROR(VLOOKUP(רשימת_בחירת_מלאי[[#This Row],[מק\"ט]],רשימת_מלאי[],3,FALSE),\"\")","v":"T5789"},{"$f":"IFERROR(VLOOKUP(רשימת_בחירת_מלאי[[#This Row],[מק\"ט]],רשימת_מלאי[],4,FALSE),\"\")","v":"שורה 1, תא 1"}]

{"sheet":"חיפוש תא","index":2,"n_rows":11,"n_cols":7,"rows_kept":11,"cut":false,"hidden":false,"merged":[]}
[null,"חיפוש תא"]
[null,"רשימת מלאי"]
[]
[null,"מספר תא","תיאור","מיקום","רוחב","גובה","אורך"]
[null,"T345","תא גדול","שורה 2, תא 1",50,10,10]
[null,"T5789","תא קטן","שורה 1, תא 1",25,5,5]
[null,"T9876","תא גדול","שורה 3, תא 2",50,10,10]
[null,"T098","תא בינוני","שורה 3, תא 1",30,7,10]
[null,"T349","תא קטן","שורה 1, תא 2",25,5,5]
[null,"T5789","תא גדול","שורה 4, תא 5",50,10,10]
[null,"T9875","תא גדול","שורה 2, תא 2",50,10,10]